Cogmind - Beta 16 @@@ ROGUE MODE // 2026.01.05 @ 05:13:22 Player: Legato Result: Destroyed by M6-DQW(R) with Subdweller Laser Performance ------------- Evolutions (0) 0 Regions Visited (2) 400 Robots Destroyed (12) 60 Value Destroyed (201) 201 Prototype IDs (0) 0 Alien Tech Used (0) 0 Bonus (0) 0 TOTAL SCORE: 661 Bonus ------- None Cogmind --------- Core Integrity 0/250 Matter 280/300 Energy 68/100 System Corruption 0% Temperature Cool (6) Movement Rolling (95) Ox1 Location -10/Subcaves Parts ------- > --- POWER (1) -------- (None) > --- PROPULSION (2) --- Wheel > --- UTILITY (2) ------ Medium Storage Unit Light Armor Plating > --- WEAPON (2) ------- (None) > --- INVENTORY (10) --- Light Ion Engine Compact Wheel Compact Wheel Sensor Array Seismic Detector Power Shielding Hacking Suite Peak State ------------ > --- POWER ------------ Light Ion Engine > --- PROPULSION ------- Aluminum Leg Aluminum Leg > --- UTILITY ---------- Small Storage Unit Improved Terrain Scanner > --- WEAPON ----------- Medium Laser Light Assault Rifle > --- INVENTORY -------- Light Ion Engine Wheel Wheel Compact Wheel Compact Wheel Compact Wheel Compact Wheel [Rating: 9] Favorites ----------- Power Light Ion Engine Engine Light Ion Engine Propulsion Aluminum Leg Leg Aluminum Leg Wheel Wheel Utility Medium Storage Unit Device Sensor Array Storage Medium Storage Unit Protection Light Armor Plating Weapon Light Assault Rifle Energy Gun Medium Laser Ballistic Gun Light Assault Rifle Build | -11 -10 -10 ------- Run | Yrd Mat Sub Slots Evolved . | . . . Power . | . . . Propulsion . | . . . Utility . | . . . Weapon . | . . . Parts Attached 15 | 9 5 1 Power 2 | 1 1 . Engine 2 | 1 1 . Core . | . . . Reactor . | . . . Propulsion 5 | 3 1 1 Treads . | . . . Leg 2 | 2 . . Wheel 3 | 1 1 1 Hover . | . . . Flight . | . . . Utility 6 | 3 3 . Device 3 | 2 1 . Storage 2 | 1 1 . Processor . | . . . Hackware . | . . . Protection 1 | . 1 . Artifact . | . . . Weapon 2 | 2 . . Energy Gun 1 | 1 . . Energy Cannon . | . . . Ballistic Gun 1 | 1 . . Ballistic Cannon . | . . . Launcher . | . . . Special Weapon . | . . . Impact Weapon . | . . . Slashing Weapon . | . . . Piercing Weapon . | . . . Special Melee Weapon . | . . . Unidentified Prototypes . | . . . Parts Lost 7 | . 2 5 Power 2 | . 1 1 Propulsion 3 | . 1 2 Utility . | . . . Weapon 2 | . . 2 Highest Loss Streak 5 | . 2 5 To Critical Strikes . | . . . Average Backups 7 | 5 8 7 Power 1 | . 1 1 Propulsion 4 | 4 4 2 Utility 1 | . 2 4 Weapon . | . . . Tool/Special . | . . . Unused Backups 6 | . 1 5 Power 1 | . . 1 Propulsion 3 | . 1 2 Utility 2 | . . 2 Weapon . | . . . Tool/Special . | . . . Average Slot Usage (%) 94 | . 97 83 Engine 11 | . 12 8 Leg 22 | . 24 10 Wheel 3 | . 2 10 Device 11 | . 11 14 Storage 14 | . 14 14 Protection 2 | . 2 . Energy Gun 13 | . 14 12 Ballistic Gun 14 | . 14 14 Peak Build Rating 9 | 9 8 8 Average Rating 6 | 6 6 6 On Entrance 5 | . 7 8 Avg Prop Armor Cover (%) 10 | . 10 10 Naked Turns . | . . . Heaviest Build 19 | 12 19 17 Greatest Support 20 | 20 20 10 Greatest Overweight (x) 1 | . 1 1 Average Overweight (x) . | . . 1 Largest Inventory Capacity 10 | 8 10 10 Average Capacity 9 | 7 9 10 Most Carried 9 | 8 9 8 Average Carried 7 | 5 8 7 Final Capacity 10 | 8 10 10 Final Carried 8 | 8 8 7 Class Distribution -------------------- 100% | Mutant Dominant Class ---------------- Mutant | -10/Materials Mutant | -10/Subcaves Resources | -11 -10 -10 ----------- Run | Yrd Mat Sub Matter Collected 389 | 312 75 2 Remotely . | . . . Salvage Created 345 | 172 142 31 Parts 24 | 13 9 2 Haulers Intercepted . | . . . Recyclers Shooed . | . . . Parts Field Recycled . | . . . Retrieved Matter . | . . . Parts Self-Destructed . | . . . Prevented . | . . . Parts Restored . | . . . Kills | -11 -10 -10 ------- Run | Yrd Mat Sub Combat Hostiles Destroyed 6 | . 5 1 Guns 6 | . 5 1 Classes Destroyed 6 | 2 3 1 Tunneler 4 | 4 . . Recycler 1 | 1 . . Operator 1 | . 1 . Swarmer 3 | . 3 . Grunt 2 | . 2 . Subdweller 1 | . . 1 Best Kill Streak 3 | 2 3 1 Combat Bots Only 3 | . 3 1 Max Kills in Single Turn 1 | 1 1 1 Gunslinging . | . . . Exploded . | . . . Melee . | . . . Uniques/NPCs Destroyed . | . . . Combat | -11 -10 -10 -------- Run | Yrd Mat Sub Hostile Shots Fired 76 | . 45 31 Missed 16 | . 9 7 Hits 60 | . 36 24 Projectile 60 | . 36 24 Critical Strikes 2 | . 2 . Damage Taken 890 | . 386 504 Core 263 | . 70 193 Absorbed by Shields . | . . . Core Remaining (%) 100 | 100 . . Volleys Fired 72 | 22 36 14 Largest 2 | 2 2 2 Hottest 70 | 70 70 70 Shots Fired 137 | 44 68 25 Gun 137 | 44 68 25 Cannon . | . . . Launcher . | . . . Special . | . . . Kinetic 68 | 22 32 14 Thermal 69 | 22 36 11 Explosive . | . . . Electromagnetic . | . . . Robot Hit Streak 25 | 4 8 25 Robot Miss Streak 5 | 5 5 1 Penetration Max . | . . . Secondary Targets 1 | . . 1 Max Gunslinging Chain 1 | . . 1 Shots Hit Robots 83 | 21 38 24 Core Hits 26 | 9 12 5 Critical Kills . | . . . Critical Parts Destroyed . | . . . Critical Strikes 5 | 3 . 2 Burn 5 | 3 . 2 Melee Attacks . | . . . Impact . | . . . Slashing . | . . . Piercing . | . . . Sneak Attacks . | . . . Combat Hostiles . | . . . Follow-up Attacks . | . . . Damage Inflicted 845 | 210 394 241 Guns 845 | 210 394 241 Cannons . | . . . Explosions . | . . . Melee . | . . . Ramming . | . . . Kinetic 393 | 122 169 102 Thermal 452 | 88 225 139 Explosive . | . . . Electromagnetic . | . . . Impact . | . . . Slashing . | . . . Piercing . | . . . Highest Corruption . | . . . Average Corruption . | . . . Corruption Purged . | . . . Corruption Blocked . | . . . Overload Shots . | . . . Overflow Damage . | . . . Projectiles . | . . . Explosions . | . . . Melee . | . . . Knockbacks . | . . . Impact . | . . . Kinetic . | . . . Secondary . | . . . Self-Inflicted Damage . | . . . Shots . | . . . Rammed . | . . . Targets Rammed . | . . . Kicked . | . . . Crushed . | . . . Highest Temperature 360 | 80 360 1 Average Temperature 102 | 28 149 1 Received Heat Transfer 255 | . 165 90 Siege Activations . | . . . Martial Activations . | . . . Shielding Activations . | . . . Robots Disrupted . | . . . Combat Hostiles . | . . . Robots Corrupted . | . . . Combat Hostiles . | . . . Parts Fried . | . . . Impact Corruptions . | . . . Robots Melted . | . . . Combat Hostiles . | . . . Parts Melted 4 | 1 3 . Heat Transferred 1702 | 481 666 555 Parts Sabotaged . | . . . Parts Stolen . | . . . Parts Stripped . | . . . Power Chain Reactions . | . . . Alert | -11 -10 -10 ------- Run | Yrd Mat Sub Maximum Alert Level . | . . . Low Security (%) 100 | 100 100 . Level 1 . | . . . Level 2 . | . . . Level 3 . | . . . Level 4 . | . . . Level 5 . | . . . High Security . | . . . Max Security . | . . . Peak Influence 100 | 10 100 . Initial . | . . . Average 20 | . 33 . Influence Increases 180 | 25 155 . Destroy 0b10 Robot/C 100 | . 100 . Destroy 0b10 Robot/NC 30 | 25 5 . Destroy Leader 20 | . 20 . Lose Combat Pursuer 30 | . 30 . Influence Decreases 180 | 25 80 75 Entered New Map 37 | . . 37 Time Decay 103 | 25 60 18 Lost Part 40 | . 20 20 Squads Dispatched . | . . . Investigation . | . . . Extermination . | . . . Reinforcement . | . . . Assault . | . . . Garrison . | . . . Intercept . | . . . Searches Triggered . | . . . Construction Impeded . | . . . Haulers Reinforced . | . . . Active Scanning Responses . | . . . Cargo Convoy Interrupts . | . . . Stealth | -11 -10 -10 --------- Run | Yrd Mat Sub Distress Signals . | . . . Communications Jammed . | . . . Distress Signals . | . . . Times Spotted 12 | . 10 2 Peak Tracking Total 5 | . 5 2 Tactical Retreats 1 | . 1 . Traps | -11 -10 -10 ------- Run | Yrd Mat Sub Traps Triggered . | . . . Indirectly . | . . . Trap Hack Attempts . | . . . Triggered . | . . . Disarmed . | . . . Reprogrammed . | . . . Reused . | . . . Traps Extracted . | . . . Installed . | . . . Triggered . | . . . Machines | -11 -10 -10 ---------- Run | Yrd Mat Sub Machines Disabled . | . . . Max in Single Turn . | . . . Machines Repaired . | . . . Machines Dismantled . | . . . Machines Sabotaged . | . . . Overloaded Fab Kills . | . . . Hacking | -11 -10 -10 --------- Run | Yrd Mat Sub Machines Accessed 2 | . 2 . Terminals 2 | . 2 . Fabricators . | . . . Repair Stations . | . . . Recycling Units . | . . . Scanalyzers . | . . . Garrison Access . | . . . Total Hacks 2 | . 2 . Successful 1 | . 1 . Failed 1 | . 1 . Catastrophic . | . . . Database Lockouts . | . . . Manual 4 | . 4 . Terminals 2 | . 2 . Fabricators . | . . . Repair Stations . | . . . Recycling Units . | . . . Scanalyzers . | . . . Garrison Access . | . . . Terminal Hacks . | . . . Fabricator Hacks . | . . . Repair Station Hacks . | . . . Recycling Unit Hacks . | . . . Scanalyzer . | . . . Garrison Access Hacks . | . . . Unauthorized Hacks 1 | . 1 . Terminals 1 | . 1 . Track 1 | . 1 . Fabricators . | . . . Repair Stations . | . . . Recycling Units . | . . . Scanalyzers . | . . . Garrison Access . | . . . Data Cores Recovered 1 | . 1 . Used . | . . . Hacking Detections 1 | . 1 . Full Trace Events . | . . . Feedback Events . | . . . Feedback Blocked . | . . . Robot Schematics Acquired . | . . . Robots Built . | . . . Authchips . | . . . Time . | . . . Total Robot Build Rating . | . . . Part Schematics Acquired . | . . . Parts Built . | . . . Authchips . | . . . Time . | . . . Total Part Build Rating . | . . . Part Studies Acquired . | . . . Parts Repaired . | . . . Time . | . . . Parts Recycled . | . . . Recycled Matter . | . . . Retrieved Matter . | . . . Retrieved Components . | . . . Parts Scanalyzed . | . . . Part Schematics Acquired . | . . . Parts Damaged . | . . . Bothacking | -11 -10 -10 ------------ Run | Yrd Mat Sub Used RIF Installer . | . . . Robots Hacked . | . . . Non-combat . | . . . Combat . | . . . Robot Hacks Applied . | . . . Relay Couplers Released . | . . . Fabnet Peak Effective % . | . . . Robots Rewired . | . . . Allies Hacked . | . . . Hacks Repelled . | . . . Allies | -11 -10 -10 -------- Run | Yrd Mat Sub Total Allies . | . . . Largest Group . | . . . Highest-Rated Group . | . . . Highest-Rated Ally . | . . . Total Orders . | . . . Ally Attacks . | . . . Total Damage . | . . . Kills . | . . . Allies Corrupted . | . . . Allies Melted . | . . . Intel | -11 -10 -10 ------- Run | Yrd Mat Sub Active Infowar (turns) 347 | 41 246 60 Sensors 265 | . 205 60 Terrain 35 | 35 . . Seismic 47 | 6 41 . Robot Analysis Total . | . . . Derelict Logs Recovered . | . . . Drone Launches . | . . . Drone Recoveries . | . . . Exploration | -11 -10 -10 ------------- Run | Yrd Mat Sub Turns Passed 606 | 224 318 64 Spaces Moved 324 | 119 181 24 Core 1 | 1 . . Treads . | . . . Legs 253 | 117 136 . Wheels 70 | 1 45 24 Hover . | . . . Flight . | . . . Fastest Speed 50 | 50 95 95 Average Speed 114 | 119 114 95 Slowest Speed 190 | 120 190 95 Overloaded Moves . | . . . Propulsion Burnouts . | . . . Robots Hopped . | . . . Potential Cave-ins . | . . . Cave-ins Triggered . | . . . Exploration Rate (%) 16 | 7 36 5 Regions Visited 2 Branch Regions 1 Pre-discovered Areas . | . . . Known Exits Taken . | . . . Unknown Exits Taken 2 | 1 1 . Scrap Searched . | . . . Spaces Dug . | . . . Terrain Destroyed . | . . . Melee . | . . . Projectile . | . . . AOE . | . . . Terrain Rammed . | . . . Walls Destroyed . | . . . Machines Disabled . | . . . Actions | -11 -10 -10 --------- Run | Yrd Mat Sub Total 430 | 157 231 42 Wait 5 | . 3 2 Move 322 | 118 180 24 Hop . | . . . Pick Up 10 | 8 2 . Fast Attach 9 | 7 2 . Attach 3 | . 2 1 Detach 2 | . 2 . Swap 4 | 2 1 1 Drop 3 | . 3 . Fire 72 | 22 36 14 Melee . | . . . Ram . | . . . Kick . | . . . Crush . | . . . Escape Stasis . | . . . Rewire . | . . . Trap . | . . . Miscellaneous . | . . . Route ------- -11/Scrapyard -10/Materials (discovered 3 exits: [*Mat] / [*Min] / [*Sub]) -10/Subcaves History --------- Turn | Location | Event 12 | -11/Scrapyard | Discovered new exit (range 15) 225 | -11/Scrapyard | Entered Materials 280 | -10/Materials | Discovered new exit (range 13) 307 | -10/Materials | Build established: Mutant 527 | -10/Materials | Discovered new exit (range 9) 532 | -10/Materials | Discovered new exit (range 11) 543 | -10/Materials | Entered Subcaves 580 | -10/Subcaves | Core integrity fell below 50% 586 | -10/Subcaves | Core integrity fell below 20% 607 | -10/Subcaves | Destroyed by M6-DQW(R) with Subdweller Laser Last Messages --------------- 00527_ EXIT=FOUND 00536_ K-01 Serf collects debris. LOCATION=UNKNOWN AMBIENT_HEAT=-10 GOAL=ESCAPE 00558_ Acquired 2 matter. 00572_ 16-6DU(R) suffers critical hit (Burn). 00575_ Lgt. Ion Engine destroyed. 00580_ Wheel destroyed. 00580_ 16-6DU(R) suffers critical hit (Burn). 00587_ 17-W0T(O) collects matter. 00588_ Aluminum Leg destroyed. 00589_ 16-6DU(R) destroyed. 00589_ Switching to secondary target: M6-DQW(R). 00590_ 17-W0T(O) puts together Battle Cannon. 00590_ 17-W0T(O) collects matter. 00596_ M6-DQW(R) affixes Scrap Shield Fragment to Scrap Shield. 00597_ Med. Laser destroyed. 00601_ Lgt. Assault Rifle destroyed. 00602_ Subatomizers dissect the Sub. Optics. Map ----- +----------------------------------------------------+ | ?????????????????????????????####????????????????? | | ????????????????????????????# "#????????????????? | | ??????????????????????????##""""#????????????????? | | ??????????????????????????#"" "#????????????????? | | ??????????????????????????# "#????????????????? | | ?????????????#??????????### #?????????????????? | | ????????? ???###### #??????????????????? | | ????????? ?## #???????????????????? | | ??????????# # # ##???????????????????? | | ??????????# ##????????????????????? | | ??????????# ##?????????????????????? | | ??????????# ## ##?????????????????????? | | ?????????? ???#### #?????????????????????? | | ?????????????????????## #?????????????????????? | | ????????????????####?## #?????????????????????? | | ????????????????# ## ###?????????????????????? | | ????????????????# #???????????????????????? | | ???????????????## #???????????????????????? | | ???????????????# #???????????????????????? | | ???????????????# #???????????????????????? | | ???????????????# ## ####?##?????????????????? | | ???????????????## ## ## #?????????????????? | | ????????????????####?## #?????????????????? | | ????????????????????### R ##????????????????? | | ????????????????# # ! * ##???????????????? | | ??????????# @### #???????????????? | | ??????????# #?#% #????????? | | ??????????# ## ### #?# % #????????? | | ???????????????????# ## ? ## ###????????? | | ???????????????????##?## ? % #??##??????????? | | ???????????????????????# ? ?????????????? | | ???????????????????????# ? ????????????? | | ???????????????????????## ## ???????????? | | ????????????????????????#### ### ??????????? | | ??????????????????????????? ???## ?????????? | | ???????????????????????????# ????? ### ????????? | | ??????????????????????????? ?????? ##???????????? | | ???????????????????????????# ?????? #????????????? | | ????????????????????????????#???????#????????????? | | ?????????????????????????????????????????????????? | | ?????????????????????????????????????????????????? | | ?????????????????????????????????????????????????? | | ?????????????????????????????????????????????????? | | ?????????????????????????????????????????????????? | | ?????????????????????????????????????????????????? | | ?????????????????????????????????????????????????? | | ?????????????????????????????????????????????????? | | ?????????????????????????????????????????????????? | | ?????????????????????????????????????????????????? | | ?????????????????????????????????????????????????? | +----------------------------------------------------+ Best States ------------- Heat Dissipation 25 Energy Generation 10 Energy Capacity 125 Matter Stores 300 Matter Capacity 300 Sight Range 16 Robot Scan Range 14 Terrain Scan Range 16 Terrain Scan Density 10 Armor Coverage 150 Evasion (%) 55 Item Schematics ----------------- None Robot Schematics ------------------ None Fabricated ------------ Nothing Repaired ---------- Nothing Studied --------- None Alien Tech Used ----------------- None Achievements -------------- None Challenges ------------ None Game ------ Seed RiotHypercooledAccelerator Manual? 0 Play Time 00:10:39 Cumulative 32.7 hours Start 2026.01.05 @ 05:02:33 End 2026.01.05 @ 05:13:22 Sessions 1 Manual Loads 0 Difficulty Rogue Special Mode None Game No. 41 Rogue 41 Adventurer 0 Explorer 0 Win Type - Total 0 Types 0/0/0/0/0/0/0/0/0/0 Lore% 30 Gallery% 33 Achievement% 23 Wizard Run 0 Options --------- Layout 0 ASCII 1 Keyboard 0 Movement Arrows Keybinds 1 Fullscreen 1 Font 18/X11 Map View 76x50 Zoom Use 0% Tactical HUD 1 Map Filters NONE Filters NONE Steam 1 RUN: ffa12801-5686-4741-bbbc-3f48beb5bac5